[Event "Sardinia World Festival-A 2024"]
[Site "Orosei"]
[Date "2024.04.28"]
[Round "2.19"]
[White "Ezra Paul Chambers"]
[Black "Mikhalevski, Victor"]
[Result "0-1"]
[ECO "C54"]
[WhiteElo "2343"]
[BlackElo "2506"]
[Annotator "TA"]
[PlyCount "80"]
[EventDate "2024.04.26"]
[EventType "swiss"]
[EventCountry "ITA"]
[SourceTitle "playchess.com"]
[Source "ChessBase"]
[SourceQuality "1"]
[TimeControl "40/5400+30:1800+30"]

{[%evp 13,79,22,13,19,25,25,22,8,18,20,8,13,14,3,14,15,12,9,12,-20,-22,-15,0,-31,-30,-29,-23,-54,-65,-66,-82,-63,-61,-87,-54,-64,-36,-147,-16,-13,-16,-8,-19,-8,-18,-8,0,-244,-29,-187,-114,-128,-117,-327,-262,-618,-591,-703,-618,-2012,-1928,-1930,-1880,-29997,-29998,-29998,-29999,-29999]} 1. e4 {[%emt 0:00:42]} e5 {[%emt 0:00:20]} 2. Nf3 {[%emt 0:00:07]} Nc6 {[%emt 0:00:09]} 3. Bc4 {[%emt 0:00:11]} Nf6 {[%emt 0:00:23]} 4. d3 {[%emt 0:00:07]} Bc5 {[%emt 0:00:59]} 5. c3 {[%emt 0:00:33]} a6 {[%emt 0:01:38]} 6. O-O {[%emt 0:00:23]} d6 {[%emt 0:00:29]} 7. a4 {[%emt 0:03:08]} h6 {[%emt 0:01:07]} 8. Re1 {[%emt 0:00:26]} Ng4 {[%emt 0:03:44]} 9. Re2 {[%emt 0:01:07]} O-O {[%emt 0:00:12]} 10. b4 {[%emt 0:09:19] The position is equal.} Ba7 {[%emt 0:02:20]} 11. h3 {[%emt 0:03:20]} Nf6 {[%emt 0:00:06]} 12. Nbd2 {[%emt 0:01:49][%cal Bb1d2,Bd2f1,Bf1g3][%mdl 32]} Ne7 {[%emt 0:02:18]} 13. Nf1 {[%emt 0:01:58]} c6 {[%emt 0:00:59]} 14. Ng3 {[%emt 0:02:28]} Ng6 {[%emt 0:00:19]} 15. Bb3 {[%emt 0:01:05]} d5 {[%emt 0:00:57]} 16. Qc2 {[%emt 0:07:08]} Re8 {[%emt 0:02:38]} 17. Bd2 {[%emt 0:06:30]} Be6 {[%emt 0:04:31]} 18. Rd1 {[%emt 0:06:00]} Qd7 {[%emt 0:22:12][%cal Oe6h3]} 19. exd5 {[%emt 0:09:16]} Bxd5 {[%emt 0:11:22]} 20. Ne4 {[%emt 0:01:38]} Bxb3 {[%emt 0:07:28]} 21. Nxf6+ {[%emt 0:02:58]} gxf6 {[%emt 0:00:12]} 22. Qxb3 {[%emt 0:00:12]} Qxd3 {[%emt 0:00:11]} 23. Ree1 {[%emt 0:01:18]} Qf5 $1 {[%emt 0:00:47][%cal Og6h4] Black is more active.} 24. Bxh6 {[%emt 0:01:57]} Nh4 {[%emt 0:03:27] Some like it hot} (24... e4 $5 25. Nd4 $8 Qh5 $11) 25. c4 {[%emt 0:09:39] [#]} (25. Kh2 $1 $15 e4 (25... Nxf3+ 26. gxf3 Re6 27. Rg1+ Kh8 28. Be3 $11) (25... Bxf2 26. Rf1 $15) 26. Nxh4 Qxf2 27. Nf5 (27. Ng6 Bb8+ 28. Kh1 Qg3 $17) 27... Qxf5 28. Qc2) 25... Nxg2 {[%emt 0:09:05]} 26. Kxg2 $11 {[%emt 0:03:52] Be3 would now be deadly.} Qg6+ {[%emt 0:00:03]} 27. Kh2 $1 {[%emt 0:00:26] Threatens to win with Rg1.} Qxh6 {[%emt 0:00:09]} 28. Re4 $1 {[%emt 0:04:44]} Bxf2 {[%emt 0:04:59] Hoping for ...f5.} 29. Rg4+ {[%emt 0:02:36]} Kf8 {[%emt 0:00:06]} 30. Rd6 $2 {[%emt 0:10:21] [#]} (30. Qc2 $11 Be3 31. Nh4) 30... Be3 $2 {[%emt 0:04:38]} ({Better is} 30... Rad8 $1 $19 {[%cal Rd8d6]} 31. Qd3 Bb6) 31. Nh4 $2 {[%emt 0:03:02] [#]} (31. Qd1 $1 $11) 31... Bf4+ {[%emt 0:05:35]} (31... Bg5 $1 $19 {[%cal Rg5h4]} 32. Nf5 Qh5) 32. Kg2 $17 {[%emt 0:00:11]} Qh7 {[%emt 0:02:15] And now ...Rad8 would win.} 33. Rxf6 $2 {[%emt 0:07:51]} (33. Qd1 $17) 33... Qe4+ {[%emt 0:02:53]} 34. Kf1 $2 {[%emt 0:00:20]} (34. Qf3 Qc2+ (34... Qxc4 35. Ng6+ Kg7 36. Nxe5+ Kxf6 37. Nxc4 Ke7 38. Qxf4 Rad8 39. Rg7) 35. Qf2 Qxf2+ (35... Qxa4 36. Ng6+ Kg7 37. Nxe5+ Kxf6 38. Rxf4+ Ke6 39. Rf6+ Ke7 40. Rxf7+ Kd6 41. Qf6+ Re6 42. Rd7#) 36. Kxf2) 34... Ke7 $19 {[%emt 0:01:15]} 35. Rf5 {[%emt 0:00:28] Black must now prevent Rg7.} Rad8 {[%emt 0:04:55]} 36. Rg7 {[%emt 0:00:46]} Rd3 {[%emt 0:00:44]} 37. Rfxf7+ {[%emt 0:00:23]} Ke6 {[%emt 0:01:14]} 38. Qb2 {[%emt 0:00:40]} Rd1+ {[%emt 0:00:27] Black mates.} 39. Kf2 {[%emt 0:00:13]} Qe3+ {[%emt 0:00:06]} 40. Kg2 {[%emt 0:00:15]} Rg1# {[%emt 0:00:06] Weighted Error Value: White=0.77/Black=0.22 (precise) .  Loses game:     	White=2     	---        Missed win:     	---       	Black=1      Mistake:       	White=3     	Black=2      Inaccurate:     	White=5     	Black=1      OK:         	White=8     	Black=9      Best:        	White=1     	Black=5      Strong:       	White=2     	Black=1} 0-1

[Event "Sardinia World Festival-A 2024"]
[Site "Orosei"]
[Date "2024.04.28"]
[Round "2.20"]
[White "Rozen, Eytan"]
[Black "Citak, Selim"]
[Result "1/2-1/2"]
[ECO "A01"]
[WhiteElo "2499"]
[BlackElo "2327"]
[Annotator "TA"]
[PlyCount "89"]
[EventDate "2024.04.26"]
[EventType "swiss"]
[EventCountry "ITA"]
[SourceTitle "playchess.com"]
[Source "ChessBase"]
[SourceQuality "1"]
[TimeControl "40/5400+30:1800+30"]

{[%evp 9,89,0,-3,5,2,-10,27,11,66,-1,17,19,3,-4,-13,-17,0,-24,0,0,16,9,0,-14,0,0,0,-4,16,14,17,17,21,16,28,18,18,22,10,8,29,9,4,7,5,7,4,10,55,53,53,0,0,0,0,0,0,0,0,0,0,0,0,0,0,0,0,0,0,0,0,0,0,0,0,0,0,0,0,0,0,0]} 1. b3 {[%emt 0:02:31]} e5 {[%emt 0:00:21]} 2. Bb2 {[%emt 0:00:12]} Nc6 {[%emt 0:00:12]} 3. c4 {[%emt 0:01:46]} Nf6 {[%emt 0:01:01]} 4. Nf3 {[%emt 0:01:23]} e4 {[%emt 0:01:38]} 5. Nd4 {[%emt 0:00:04]} Bc5 {[%emt 0:00:46]} 6. Nf5 {[%emt 0:00:56]} O-O {[%emt 0:05:51]} 7. Ng3 {[%emt 0:03:31]} Re8 {[%emt 0:02:01][%cal Oe4e3]} 8. e3 {[%emt 0:00:25] White has an edge.} d6 {[%emt 0:10:08]} (8... g6 $11) 9. Bxf6 {[%emt 0:02:26]} (9. Be2 $14) 9... Qxf6 $11 {[%emt 0:03:41]} 10. Nc3 {[%emt 0:00:05]} Qh4 {[%emt 0:03:11]} 11. Qb1 {[%emt 0:04:41]} f5 {[%emt 0:00:22]} 12. Nd5 {[%emt 0:00:51]} Bb6 {[%emt 0:01:55]} 13. Be2 {[%emt 0:04:34]} Be6 {[%emt 0:02:01]} 14. Nh5 {[%emt 0:06:03]} Bxd5 {[%emt 0:06:43]} 15. cxd5 {[%emt 0:00:34]} Ne5 {[%emt 0:00:45]} 16. Nf4 {[%emt 0:03:31] Prevents Nd3+} Ng6 {[%emt 0:04:43]} (16... g5 {keeps more tension.} 17. Ne6 c6 18. a4 cxd5 19. a5 Rxe6 20. axb6 f4) 17. Nxg6 {[%emt 0:06:32]} hxg6 {[%emt 0:00:06]} 18. Qb2 {[%emt 0:00:41] White is weak on the dark squares} Qf6 {[%emt 0:03:39]} 19. O-O-O {[%emt 0:00:53]} Qxb2+ {[%emt 0:04:17]} 20. Kxb2 {[%emt 0:00:01]} Kf7 {[%emt 0:00:24]} 21. h4 {[%emt 0:01:06]} Rh8 {[%emt 0:02:48]} 22. g4 {[%emt 0:01:12]} Rh6 {[%emt 0:07:35]} 23. h5 {[%emt 0:01:46]} gxh5 {[%emt 0:03:39]} 24. gxf5 {[%emt 0:00:58][%cal Oh1h4]} Kf6 {[%emt 0:01:47]} 25. Rdg1 {[%emt 0:03:02]} Re8 {[%emt 0:05:06]} 26. Rxh5 {[%emt 0:06:14]} Rxh5 {[%emt 0:00:15]} 27. Bxh5 {[%emt 0:00:04][%mdl 4096] Endgame. KRB-KRB} Re5 {[%emt 0:01:02]} 28. f4 {[%emt 0:04:23]} Rxf5 {[%emt 0:04:51]} 29. Rg6+ {[%emt 0:00:18]} Kf7 {[%emt 0:00:03]} 30. Rg5+ {[%emt 0:00:11]} (30. Rh6+ $1 $14 Kf8 (30... Kg8 31. Bg4 $16) 31. Bg6 (31. Rh8+ Ke7 $14) 31... Rxd5 32. Rh2) 30... Kf6 {[%emt 0:00:01] The position is equal.} 31. Rxf5+ {[%emt 0:00:50]} (31. Rg6+ Kf7 32. Rg5+ Kf6) 31... Kxf5 {[%emt 0:00:02] KB-KB} 32. Be8 {[%emt 0:02:08]} Ba5 {[%emt 0:03:51]} 33. Bd7+ {[%emt 0:00:38]} Kf6 {[%emt 0:00:01]} 34. Kc2 {[%emt 0:00:09]} Bb4 {[%emt 0:00:40]} 35. Bc8 {[%emt 0:00:52]} b6 $1 {[%emt 0:00:29]} 36. Ba6 {[%emt 0:00:15]} g5 {[%emt 0:02:14]} 37. fxg5+ {[%emt 0:01:48]} Kxg5 {[%emt 0:00:01]} 38. d3 {[%emt 0:02:11]} exd3+ {[%emt 0:01:41]} 39. Kxd3 {[%emt 0:00:02]} Kf5 {[%emt 0:01:30]} 40. Kc4 {[%emt 0:00:35]} Bc5 {[%emt 0:00:09]} 41. Kb5 {[%emt 0:30:12]} Bxe3 {[%emt 0:31:58]} 42. Kc6 {[%emt 0:00:39]} Ke5 {[%emt 0:01:06]} 43. b4 {[%emt 0:00:36]} Kd4 {[%emt 0:06:42]} 44. b5 {[%emt 0:01:10]} Kc4 {[%emt 0:01:39]} 45. a4 {[%emt 0:01:14] Weighted Error Value: White=0.08 (flawless) /Black=0.10 (very precise) .  Mistake:       	White=2     	Black=1      Inaccurate:     	---       	Black=2      OK:         	White=18    	Black=15     Best:        	White=2     	Black=1      Strong:       	---       	Black=1} 1/2-1/2

[Event "Sardinia World Festival-A 2024"]
[Site "Orosei"]
[Date "2024.04.28"]
[Round "2.21"]
[White "Szwed, Jacek"]
[Black "Sokolovsky, Yahli"]
[Result "1/2-1/2"]
[ECO "B53"]
[WhiteElo "2336"]
[BlackElo "2490"]
[Annotator "TA"]
[PlyCount "42"]
[EventDate "2024.04.26"]
[EventType "swiss"]
[EventCountry "ITA"]
[SourceTitle "playchess.com"]
[Source "ChessBase"]
[SourceQuality "1"]
[TimeControl "40/5400+30:1800+30"]

{[%evp 20,42,0,0,0,0,0,0,0,0,0,0,0,0,0,0,-6,-8,-9,-8,-9,-8,0,0,0]} 1. e4 {[%emt 0:00:03]} c5 {[%emt 0:00:05]} 2. Nf3 {[%emt 0:00:04]} d6 {[%emt 0:00:04]} 3. d4 {[%emt 0:00:05]} cxd4 {[%emt 0:00:03]} 4. Qxd4 {[%emt 0:00:05]} Nf6 {[%emt 0:00:06]} 5. Nc3 {[%emt 0:00:40]} Nc6 {[%emt 0:00:04]} 6. Bb5 {[%emt 0:00:06]} Bd7 {[%emt 0:00:04][%cal Bc8d7,Bd7c6,Bc6g2,Bg2h3][%mdl 32]} 7. Bxc6 {[%emt 0:00:13]} Bxc6 {[%emt 0:00:05]} 8. Bg5 {[%emt 0:00:06]} e6 {[%emt 0:00:06]} 9. O-O-O {[%emt 0:00:06]} Be7 {[%emt 1:34:23]} 10. Rhe1 {[%emt 0:00:04]} O-O {[%emt 0:00:00]} 11. e5 $1 {[%emt 0:00:07] The position is equal.} dxe5 {[%emt 0:00:00]} 12. Nxe5 {[%emt 0:00:13]} Bxg2 {[%emt 0:00:00]} 13. Rg1 $1 {[%emt 0:00:12]} Qxd4 {[%emt 0:00:00]} 14. Rxd4 {[%emt 0:00:02]} h6 {[%emt 0:00:00]} 15. Be3 {[%emt 0:35:20]} Bh3 {[%emt 0:00:00]} 16. Bxh6 {[%emt 0:01:31]} Nh5 {[%emt 0:00:00]} 17. Rd7 {[%emt 0:11:31][%csl LRb7,LRe7]} Bf6 {[%emt 0:00:00]} 18. Ng4 $132 {[%emt 0:03:31][%mdl 2048] [#] Black must now prevent Nxf6+. White has counterplay} Bxc3 {[%emt 0:00:00]} 19. bxc3 {[%emt 0:00:12][%cal Od7b7]} Bxg4 {[%emt 0:00:00]} ({Of course not} 19... Rad8 $6 20. Rxb7 Kh7 21. Be3 $16) 20. Rxg4 {[%emt 0:00:04]} b6 {[%emt 0:00:00]} 21. Rg5 {[%emt 0:18:57]} Rfd8 {[%emt 0:00:00] A rather calm draw.   Weighted Error Value: White=0.00 (flawless) /Black=0.01 (flawless) .  OK:         	White=3     	Black=8      Best:        	---       	Black=1      Strong:       	White=1     	---} 1/2-1/2

[Event "Sardinia World Festival-A 2024"]
[Site "Orosei"]
[Date "2024.04.28"]
[Round "2.22"]
[White "Zhalmakhanov, Ramazan"]
[Black "Krawczyk, Flawian"]
[Result "1-0"]
[ECO "B81"]
[WhiteElo "2490"]
[BlackElo "2315"]
[Annotator "TA"]
[PlyCount "67"]
[EventDate "2024.04.26"]
[EventType "swiss"]
[EventCountry "ITA"]
[SourceTitle "playchess.com"]
[Source "ChessBase"]
[SourceQuality "1"]
[TimeControl "40/5400+30:1800+30"]

{[%evp 12,67,15,19,33,35,45,45,32,30,41,26,65,24,27,0,100,101,97,117,176,183,164,166,175,174,222,156,295,291,883,439,910,902,861,630,813,629,583,592,588,590,716,702,715,584,758,739,768,749,29987,1159,5306,5302,5143,5143,1922,1921]} 1. e4 {[%emt 0:00:03]} c5 {[%emt 0:00:11]} 2. Nf3 {[%emt 0:00:34]} d6 {[%emt 0:00:05]} 3. d4 {[%emt 0:00:15]} cxd4 {[%emt 0:00:05]} 4. Nxd4 {[%emt 0:00:08]} Nf6 {[%emt 0:00:04]} 5. Nc3 {[%emt 0:00:08]} a6 {[%emt 0:00:03]} 6. h3 {[%emt 0:00:12]} e6 {[%emt 0:01:28]} 7. g4 $1 {[%emt 0:00:48][%cal Bg2g4,Bg4g5][%mdl 32]} Be7 {[%emt 0:08:11]} 8. g5 {[%emt 0:02:33]} Nfd7 {[%emt 0:00:35][%cal Ob7b5]} 9. Be3 {[%emt 0:00:35]} b5 {[%emt 0:03:31][%cal Ob5b4] White is slightly better.} (9... Bxg5 $6 10. Nxe6 fxe6 11. Qh5+ (11. Qxd6 $2 Qe7 $19) 11... g6 12. Qxg5 $16) 10. a3 {[%emt 0:12:58]} Bb7 {[%emt 0:00:39][%cal Od7b6]} ({But not} 10... Bxg5 $6 11. Nxe6 fxe6 12. Qh5+ (12. Qxd6 $2 Qe7 $19) 12... g6 13. Qxg5 $16) 11. h4 {[%emt 0:09:18]} Nc6 {[%emt 0:07:45]} 12. Rg1 {[%emt 0:04:17] White is more active.} Rc8 {[%emt 0:02:36]} 13. h5 {[%emt 0:02:41]} Nxd4 {[%emt 0:06:09]} (13... Nce5 $11 {remains equal.}) 14. Qxd4 $16 {[%emt 0:02:44] White now steadily converts the win.} e5 {[%emt 0:02:50]} 15. Qd2 {[%emt 0:01:19]} Rxc3 {[%emt 0:09:57]} 16. Qxc3 $18 {[%emt 0:04:02]} ({Don't play} 16. bxc3 $6 Bxe4 17. c4 O-O $16) 16... Bxe4 {[%emt 0:00:19]} 17. Bd3 {[%emt 0:03:25]} Bb7 {[%emt 0:01:39]} 18. O-O-O {[%emt 0:14:02]} O-O {[%emt 0:28:13]} (18... Qc8 $142 19. Qxc8+ Bxc8) 19. Bf5 {[%emt 0:14:10] Black must now prevent h6.} Nb6 {[%emt 0:03:00]} (19... Bf3 $16 20. h6 a5) 20. Qd3 {[%emt 0:02:33]} d5 $2 {[%emt 0:01:00]} (20... Kh8 21. Bxh7 Nc4) 21. Bxh7+ {[%emt 0:02:39]} Kh8 {[%emt 0:00:55]} 22. h6 {[%emt 0:01:55]} Nc4 {[%emt 0:02:43]} 23. hxg7+ {[%emt 0:06:14]} Kxg7 {[%emt 0:01:50]} 24. f4 {[%emt 0:03:43]} d4 {[%emt 0:05:13]} 25. Bf2 {[%emt 0:01:30]} Rh8 {[%emt 0:05:26][%cal Bf8h8,Bh8h2,Bh2f2][%mdl 32]} 26. Bf5 {[%emt 0:02:55]} Rh2 {[%emt 0:04:07]} 27. Qg3 {[%emt 0:02:07][%csl LRe5,LRh2]} Rxf2 {[%emt 0:00:42]} 28. Qh4 {[%emt 0:01:32] Threatening mate with Qh7+.} Qh8 {[%emt 0:01:45]} 29. Qxf2 {[%emt 0:00:02]} Ne3 {[%emt 0:00:52]} 30. fxe5 {[%emt 0:00:19]} Bc5 {[%emt 0:00:50] [#]} 31. Bd3 {[%emt 0:00:26]} Be7 {[%emt 0:00:44] [#] White is clearly winning.} 32. g6 $1 {[%emt 0:00:44]} f6 {[%emt 0:00:05]} (32... f5 33. exf6+) 33. exf6+ {[%emt 0:00:06]} Bxf6 {[%emt 0:00:03] [#]} 34. Rdf1 $1 {[%emt 0:00:14] Weighted Error Value: White=0.27 (precise) /Black=0.65.  Mistake:       	---       	Black=5      Inaccurate:     	White=2     	Black=1      OK:         	White=11    	Black=8      Best:        	White=1     	---} 1-0

[Event "Sardinia World Festival-A 2024"]
[Site "Orosei"]
[Date "2024.04.28"]
[Round "2.23"]
[White "Lohia, Sohum"]
[Black "Velten, Paul"]
[Result "0-1"]
[ECO "C11"]
[WhiteElo "2316"]
[BlackElo "2481"]
[Annotator "TA"]
[PlyCount "88"]
[EventDate "2024.04.26"]
[EventType "swiss"]
[EventCountry "ITA"]
[SourceTitle "playchess.com"]
[Source "ChessBase"]
[SourceQuality "1"]
[TimeControl "40/5400+30:1800+30"]

{[%evp 16,88,8,19,13,10,20,-1,23,16,26,32,26,-22,0,-34,-28,-72,-50,-73,-60,-113,-109,-102,-136,-110,-12,-27,-30,-2,-7,-102,-114,-104,-120,-131,-78,-65,-16,-20,-25,-16,17,19,59,33,0,0,0,-41,-36,-23,-29,-70,-37,-221,-220,-443,-444,-608,-677,-701,-687,-999,-961,-1202,-1152,-1119,-1002,-1343,-1356,-5402,-2732,-5185,-2802]} 1. e4 {[%emt 0:00:05]} e6 {[%emt 0:00:46]} 2. d4 {[%emt 0:00:14]} d5 {[%emt 0:00:35]} 3. Nc3 {[%emt 0:00:19]} Nf6 {[%emt 0:01:39]} 4. e5 {[%emt 0:00:23]} Nfd7 {[%emt 0:00:22]} 5. f4 {[%emt 0:00:21]} c5 {[%emt 0:00:46]} 6. Nf3 {[%emt 0:00:19]} Nc6 {[%emt 0:00:49]} 7. Be3 {[%emt 0:00:30]} a6 {[%emt 0:04:55]} 8. a3 {[%emt 0:01:00]} cxd4 {[%emt 0:09:48]} 9. Nxd4 {[%emt 0:00:22]} Bc5 {[%emt 0:01:11]} 10. Qd2 {[%emt 0:00:24]} Qc7 {[%emt 0:07:00]} 11. O-O-O {[%emt 0:04:32]} Be7 {[%emt 0:02:16] The position is equal.} 12. h4 {[%emt 0:19:31]} b5 {[%emt 0:09:14]} 13. Nxc6 {[%emt 0:02:24]} Qxc6 {[%emt 0:00:21]} 14. Ne2 {[%emt 0:10:59]} (14. Rh3 $142) 14... Qb7 {[%emt 0:06:26]} 15. Nd4 {[%emt 0:04:59]} b4 {[%emt 0:02:42]} 16. axb4 {[%emt 0:02:53]} Bxb4 {[%emt 0:00:09]} 17. c3 {[%emt 0:05:46]} Be7 {[%emt 0:01:15]} 18. Qc2 {[%emt 0:11:26]} (18. g4 $15) 18... Nc5 $17 {[%emt 0:01:57]} 19. b4 {[%emt 0:01:31]} Ne4 {[%emt 0:01:18] ...Bd7 is the strong threat.} 20. Bd3 {[%emt 0:02:15]} a5 {[%emt 0:02:57]} (20... Bd7 $17 {[%cal Oe4c3] And now ...Nxc3! would win.} 21. Bxe4 dxe4) 21. Bxe4 $11 {[%emt 0:02:55]} dxe4 {[%emt 0:00:47]} 22. b5 {[%emt 0:04:38]} Bd7 {[%emt 0:03:04]} 23. Kd2 {[%emt 0:05:55]} (23. c4 $11 {keeps the balance.}) 23... O-O $17 {[%emt 0:00:31]} (23... Bxb5 24. Rb1 Rd8 25. Qb2 $16 (25. c4 Bb4+ 26. Rxb4 axb4 $11)) 24. c4 {[%emt 0:01:12]} Rac8 {[%emt 0:01:10]} 25. Qb3 {[%emt 0:01:57]} Rc7 {[%emt 0:04:11]} (25... f6 $142 26. exf6 Rxf6) 26. Ra1 {[%emt 0:04:12]} Rfc8 {[%emt 0:00:53]} (26... Bb4+ $15 27. Ke2 f6) 27. Rhc1 $11 {[%emt 0:00:55]} Bb4+ {[%emt 0:04:10]} (27... Bxh4 $2 28. Rxa5 Qb8 29. b6 $18) 28. Ke2 {[%emt 0:00:59]} h6 {[%emt 0:02:03]} 29. Kf2 {[%emt 0:03:34]} Rc5 {[%emt 0:02:17]} (29... Be8 {simplifies} 30. Ra4 Rd8 31. Rxb4 axb4 32. Qxb4 Rxd4 33. Bxd4 Bxb5 34. Rb1 Ba6) 30. Ne2 {[%emt 0:02:23]} R5c7 {[%emt 0:02:40]} 31. Nd4 {[%emt 0:00:18]} Be8 {[%emt 0:00:34]} 32. g4 {[%emt 0:02:28]} Rd8 {[%emt 0:00:15]} 33. Rd1 {[%emt 0:01:06]} Rcd7 {[%emt 0:00:50]} 34. Ke2 {[%emt 0:02:06]} Qc7 {[%emt 0:01:23][%cal Og7g5]} (34... Qc8 $5) 35. Rac1 $2 {[%emt 0:02:24] This costs White the game.} (35. h5 $15) 35... Bc5 $19 {[%emt 0:00:28]} 36. Qb2 {[%emt 0:00:42]} (36. b6 Qc8 (36... Qxb6 37. Qxb6 Bxb6 38. c5 $19) (36... Bxb6 37. Nxe6 fxe6 38. Qxb6 $11) 37. Rb1) 36... Qb6 {[%emt 0:00:20][%cal Rd7d4] Black is clearly winning.} 37. Rc2 {[%emt 0:00:32]} Bxd4 {[%emt 0:00:52]} 38. Rxd4 {[%emt 0:00:26]} Rxd4 {[%emt 0:00:10]} 39. Qc3 {[%emt 0:00:33] [#]} R8d7 $1 {[%emt 0:03:00]} 40. Bxd4 {[%emt 0:00:26]} (40. Kf2 Qd8) 40... Rxd4 {[%emt 0:00:55]} ({Less strong is} 40... Qxd4 41. Qxd4 Rxd4 42. Ke3 $19) 41. Qe3 {[%emt 0:30:30]} Qd8 {[%emt 0:30:12]} 42. g5 {[%emt 0:00:00] [#]} Rxc4 $3 {[%emt 0:00:00][%mdl 512]} 43. Rxc4 {[%emt 0:00:00]} (43. Rb2 hxg5) 43... Bxb5 {[%emt 0:00:00]} 44. Qxe4 {[%emt 0:00:00]} Qd5 {[%emt 0:00:00] Weighted Error Value: White=0.82/Black=0.14 (very precise) .  Loses game:     	White=1     	---        Mistake:       	White=4     	Black=3      Inaccurate:     	White=6     	Black=3      OK:         	White=7     	Black=8      Best:        	White=2     	Black=2} (44... Bxc4+ 45. Qxc4 Qd5 46. Qa4 $19) 0-1